Cogmind - Beta 17 @@@ ROGUE MODE // 2026.06.29 @ 18:15:48 Player: goobie Result: Destroyed by S-43 Plague with Heavy Machine Gun Performance ------------- Evolutions (7) 3500 Regions Visited (13) 2600 Robots Destroyed (12) 60 Value Destroyed (191) 191 Prototype IDs (2) 40 Alien Tech Used (0) 0 Bonus (800) 800 TOTAL SCORE: 7191 Bonus ------- Entered DSFs 500 Aligned with FarCom 300 Cogmind --------- Core Integrity 0/1300 Matter 163/300 Energy 99/100 System Corruption 2% Temperature Cool (0) Movement Core (50) Location -3/Research Parts ------- > --- POWER (3) -------- (None) > --- PROPULSION (7) --- (None) > --- UTILITY (7) ------ Advanced System Shield > --- WEAPON (4) ------- (None) > --- INVENTORY (5) ---- Improved Fusion Compressor Advanced Cryofiber Web Advanced Coolant Injector Compact Ion Cannon Railgun Peak State ------------ > --- POWER ------------ Improved Fusion Compressor > --- PROPULSION ------- Antigrav Array Nuclear Pulse Array > --- UTILITY ---------- Compact Battery Advanced Transmission Jammer Advanced System Shield > --- WEAPON ----------- Compact HERF Cannon Improved Plasma Cutter > --- INVENTORY -------- Improved Fusion Compressor Advanced Cryofiber Web Advanced Coolant Injector Compact Ion Cannon Railgun [Rating: 68] Favorites ----------- Power Light Deuterium Engine Engine Light Deuterium Engine Power Core Improved Fusion Compressor Propulsion Flight Unit Wheel Wheel Hover Unit Antigrav Array Flight Unit Flight Unit Utility Advanced Weight Redist. System Device Advanced Weight Redist. System Storage Compact Battery Processor Targeting Computer Hackware Advanced System Shield Protection Improved Light Armor Plating Weapon Assault Rifle Energy Gun Lightning Gun Energy Cannon Compact HERF Cannon Ballistic Gun Assault Rifle Special Weapon Improved Plasma Cutter Special Melee Weapon Advanced Datajack Build | -11 -10 -10 -10 -9 -8 -7 -6 -6 -6 -5 -5 -4 -3 ------- Run | Yrd Mat Min Exi Min Mat Fac Fac Low Low Fac DSF Fac Res Slots Evolved 14 | . . . . . 4 2 2 . . 2 . 2 2 Power 2 | . . . . . . 1 1 . . . . . . Propulsion 5 | . . . . . 2 1 . . . 1 . . 1 Utility 5 | . . . . . 2 . 1 . . 1 . . 1 Weapon 2 | . . . . . . . . . . . . 2 . Parts Attached 68 | 4 6 . . 4 9 13 4 3 . . 8 12 5 Power 12 | 1 1 . . 1 4 1 1 1 . . . 2 . Engine 7 | 1 1 . . 1 3 1 . . . . . . . Core 5 | . . . . . 1 . 1 1 . . . 2 . Reactor . | . . . . . . . . . . . . . . Propulsion 27 | 2 3 . . 2 2 4 1 1 . . 7 1 4 Treads . | . . . . . . . . . . . . . . Leg . | . . . . . . . . . . . . . . Wheel 2 | 2 . . . . . . . . . . . . . Hover 4 | . . . . . . . . . . . . . 4 Flight 21 | . 3 . . 2 2 4 1 1 . . 7 1 . Utility 16 | 1 . . . . 3 3 2 . . . 1 6 . Device 11 | . . . . . 2 2 2 . . . 1 4 . Storage 2 | 1 . . . . . . . . . . . 1 . Processor 1 | . . . . . . 1 . . . . . . . Hackware 1 | . . . . . . . . . . . . 1 . Protection 1 | . . . . . 1 . . . . . . . . Artifact . | . . . . . . . . . . . . . . Weapon 13 | . 2 . . 1 . 5 . 1 . . . 3 1 Energy Gun 4 | . 1 . . . . 3 . . . . . . . Energy Cannon 1 | . . . . . . . . . . . . . 1 Ballistic Gun 5 | . 1 . . 1 . 1 . 1 . . . 1 . Ballistic Cannon . | . . . . . . . . . . . . . . Launcher . | . . . . . . . . . . . . . . Special Weapon 1 | . . . . . . . . . . . . 1 . Impact Weapon . | . . . . . . . . . . . . . . Slashing Weapon . | . . . . . . . . . . . . . . Piercing Weapon . | . . . . . . . . . . . . . . Special Melee Weapon 2 | . . . . . . 1 . . . . . 1 . Unidentified Prototypes 2 | . . . . . 1 1 . . . . . . . Parts Lost 33 | . . . . 1 2 . 1 5 . . 13 2 9 Power 2 | . . . . . . . . . . . 1 . 1 Propulsion 19 | . . . . 1 1 . . 5 . . 7 . 5 Utility 7 | . . . . . . . . . . . 4 1 2 Weapon 5 | . . . . . 1 . 1 . . . 1 1 1 Highest Loss Streak 13 | . . . . 1 2 . 1 3 . . 13 2 9 To Critical Strikes . | . . . . . . . . . . . . . . Average Backups 3 | 2 5 5 5 4 4 3 4 3 4 4 5 2 5 Power . | . 1 1 1 1 1 . 1 1 1 1 1 . 1 Propulsion 1 | . 2 3 3 3 2 . 1 . . . . . . Utility . | . . . . . . . 1 1 3 3 3 . 2 Weapon . | 1 1 1 1 . . 1 . . . . . . 2 Tool/Special . | . . . . . . . . . . . . . . Unused Backups 11 | . 2 . . . 2 2 1 . . . 1 2 1 Power 1 | . . . . . 1 . . . . . . . . Propulsion 4 | . 2 . . . . . . . . . . 2 . Utility 3 | . . . . . 1 . 1 . . . 1 . . Weapon 3 | . . . . . . 2 . . . . . . 1 Tool/Special . | . . . . . . . . . . . . . . Average Slot Usage (%) 63 | . 82 71 71 64 72 98 92 84 53 47 49 32 22 Engine 6 | . 14 14 14 14 4 9 13 6 6 5 3 . . Core 2 | . . . . . 4 4 . 5 . . . 2 2 Wheel 1 | . 24 . . . . . . . . . . . . Flight 20 | . 3 28 28 25 35 38 33 25 13 11 21 5 2 Device 12 | . . . . . 4 15 24 32 26 23 19 9 2 Storage 1 | . 12 . . . . . . . . . . 4 2 Processor 1 | . . . . . . 6 3 . . . . . . Protection 1 | . . . . . 6 6 3 . . . . . . Energy Gun 4 | . 14 14 14 . . 6 6 2 6 5 3 . . Ballistic Gun 6 | . 12 14 14 23 16 6 2 9 . . . . . Special Weapon 1 | . . . . . . . . . . . . 4 2 Special Melee Weapon 1 | . . . . . . 1 3 . . . . 2 . Peak Build Rating 68 | 4 6 5 5 5 17 36 46 51 27 28 53 63 68 Average Rating 29 | 3 5 5 5 4 12 30 39 42 27 27 32 41 41 On Entrance 17 | . 4 5 5 5 5 17 32 46 27 27 28 2 44 Avg Prop Armor Cover (%) 6 | . . . . . 2 . . . . . 13 . 10 Naked Turns 15 | . . . . . . . . . . . 15 . . Heaviest Build 30 | 10 14 7 7 7 12 27 30 30 15 15 16 13 11 Greatest Support 44 | 20 20 8 8 8 25 32 33 33 20 20 44 13 40 Greatest Overweight (x) 1 | . . . . . . . . 1 . . . . . Average Overweight (x) . | . . . . . . . . . . . . . . Largest Inventory Capacity 8 | 8 8 5 5 5 5 5 5 5 5 5 5 5 5 Average Capacity 5 | 7 7 5 5 5 5 5 5 5 5 5 5 5 5 Most Carried 7 | 6 7 5 5 5 5 5 5 5 4 5 5 5 5 Average Carried 3 | 3 5 5 5 4 4 3 4 3 4 4 4 2 5 Final Capacity 8 | 8 5 5 5 5 5 5 5 5 5 5 5 5 5 Final Carried 6 | 6 5 5 5 5 3 5 4 4 4 5 5 5 5 Class Distribution -------------------- 31% | Infiltrator-Mutant 30% | Mutant 15% | Sprinter 10% | Infiltrator-Sprinter 7% | Scavenger-Mutant 4% | Scavenger-Sprinter Dominant Class ---------------- Mutant | -10/Materials Mutant | -10/Mines Mutant | -10/Exiles Mutant | -9/Mines Scavenger-Mutant | -8/Materials Sprinter | -7/Factory Infiltrator-Sprinter | -6/Factory Infiltrator-Mutant | -6/Lower Caves Infiltrator-Mutant | -6/Lower Caves Mutant | -5/Factory Sprinter | -5/DSF Infiltrator-Mutant | -4/Factory Mutant | -3/Research Resources | -11 -10 -10 -10 -9 -8 -7 -6 -6 -6 -5 -5 -4 -3 ----------- Run | Yrd Mat Min Exi Min Mat Fac Fac Low Low Fac DSF Fac Res Matter Collected 1083 | 150 177 45 . 60 . 162 . 253 . . 39 53 144 Remotely . | . . . . . . . . . . . . . . Salvage Created 335 | . 192 . . 60 . . . 83 . . . . . Parts 27 | . 11 . . 10 . . . 6 . . . . . Haulers Intercepted . | . . . . . . . . . . . . . . Recyclers Shooed . | . . . . . . . . . . . . . . Parts Field Recycled . | . . . . . . . . . . . . . . Retrieved Matter . | . . . . . . . . . . . . . . Parts Self-Destructed 1 | . . . . . . . . 1 . . . . . Prevented 2 | . . . . . . . . 2 . . . . . Parts Restored . | . . . . . . . . . . . . . . Kills | -11 -10 -10 -10 -9 -8 -7 -6 -6 -6 -5 -5 -4 -3 ------- Run | Yrd Mat Min Exi Min Mat Fac Fac Low Low Fac DSF Fac Res Combat Hostiles Destroyed 11 | . 4 . . 4 . . . 3 . . . . . Guns 10 | . 4 . . 4 . . . 2 . . . . . AOE 1 | . . . . . . . . 1 . . . . . Classes Destroyed 3 | . 3 . . . . . . . . . . . . Recycler 1 | . 1 . . . . . . . . . . . . Swarmer 10 | . 3 . . 4 . . . 3 . . . . . Grunt 1 | . 1 . . . . . . . . . . . . Best Kill Streak 4 | . 4 . . 4 . . . 3 . . . . . Combat Bots Only 4 | . 3 . . 4 . . . 3 . . . . . Max Kills in Single Turn 1 | . 1 . . 1 . . . 1 . . . . . Gunslinging . | . . . . . . . . . . . . . . Exploded 1 | . . . . . . . . 1 . . . . . Melee . | . . . . . . . . . . . . . . Uniques/NPCs Destroyed . | . . . . . . . . . . . . . . Combat | -11 -10 -10 -10 -9 -8 -7 -6 -6 -6 -5 -5 -4 -3 -------- Run | Yrd Mat Min Exi Min Mat Fac Fac Low Low Fac DSF Fac Res Hostile Shots Fired 383 | . 19 8 . 21 52 9 24 25 2 . 39 18 166 Missed 152 | . 3 5 . 4 26 7 18 8 1 . 14 7 59 Hits 231 | . 16 3 . 17 26 2 6 17 1 . 25 11 107 Melee 22 | . . . . . . . . 5 . . 17 . . Projectile 209 | . 16 3 . 17 26 2 6 12 1 . 8 11 107 AOE 4 | . . . . . . . . . . . 2 2 . Critical Strikes 21 | . . . . . 2 . . . . . 11 . 8 Part Disruptions 2 | . . . . . . . . . . . . . 2 Damage Taken 4582 | . 157 38 . 137 375 11 94 287 14 . 904 388 2177 Core 2248 | . 54 10 . 35 33 . . 62 14 . 587 138 1315 Absorbed by Shields . | . . . . . . . . . . . . . . Core Remaining (%) 82 | 100 . . . 60 94 100 . . 91 . 41 88 . Volleys Fired 29 | . 14 . 1 6 . . . 8 . . . . . Largest 2 | . 2 . 2 2 . . . 2 . . . . . Hottest 83 | . 60 . 60 40 . . . 83 . . . . . Shots Fired 56 | . 28 . 2 11 . . . 15 . . . . . Gun 56 | . 28 . 2 11 . . . 15 . . . . . Cannon . | . . . . . . . . . . . . . . Launcher . | . . . . . . . . . . . . . . Special . | . . . . . . . . . . . . . . Kinetic 33 | . 14 . 1 11 . . . 7 . . . . . Thermal . | . . . . . . . . . . . . . . Explosive . | . . . . . . . . . . . . . . Electromagnetic 23 | . 14 . 1 . . . . 8 . . . . . Robot Hit Streak 4 | . 4 . . 2 . . . 4 . . . . . Robot Miss Streak 3 | . 3 . . 2 . . . 2 . . . . . Penetration Max . | . . . . . . . . . . . . . . Secondary Targets 1 | . . . . 1 . . . . . . . . . Max Gunslinging Chain 1 | . . . . 1 . . . . . . . . . Shots Hit Robots 28 | . 15 . . 5 . 1 . 7 . . . . . Core Hits 15 | . 6 . . 4 . . . 5 . . . . . Critical Kills . | . . . . . . . . . . . . . . Critical Parts Destroyed . | . . . . . . . . . . . . . . Critical Strikes . | . . . . . . . . . . . . . . Melee Attacks 1 | . . . . . . 1 . . . . . . . Impact . | . . . . . . . . . . . . . . Slashing . | . . . . . . . . . . . . . . Piercing . | . . . . . . . . . . . . . . Sneak Attacks 1 | . . . . . . 1 . . . . . . . Combat Hostiles . | . . . . . . . . . . . . . . Follow-up Attacks . | . . . . . . . . . . . . . . Damage Inflicted 431 | . 195 . . 71 . . . 165 . . . . . Guns 396 | . 195 . . 71 . . . 130 . . . . . Cannons . | . . . . . . . . . . . . . . Explosions 35 | . . . . . . . . 35 . . . . . Melee . | . . . . . . . . . . . . . . Ramming . | . . . . . . . . . . . . . . Kinetic 221 | . 106 . . 71 . . . 44 . . . . . Thermal 35 | . . . . . . . . 35 . . . . . Explosive . | . . . . . . . . . . . . . . Electromagnetic 175 | . 89 . . . . . . 86 . . . . . Impact . | . . . . . . . . . . . . . . Slashing . | . . . . . . . . . . . . . . Piercing . | . . . . . . . . . . . . . . Highest Corruption 2 | . . . . . . . . . . . . 1 2 Average Corruption 1 | . . . . . . . . . . . . 1 1 Corruption Purged . | . . . . . . . . . . . . . . Corruption Blocked . | . . . . . . . . . . . . . . Effects 1 | . . . . . . . . . . . . . 1 Matter Fused 1 | . . . . . . . . . . . . . 1 Overload Shots . | . . . . . . . . . . . . . . Overflow Damage 10 | . . . . . . . . 10 . . . . . Projectiles . | . . . . . . . . . . . . . . Explosions 10 | . . . . . . . . 10 . . . . . Melee . | . . . . . . . . . . . . . . Knockbacks . | . . . . . . . . . . . . . . Impact . | . . . . . . . . . . . . . . Kinetic . | . . . . . . . . . . . . . . Secondary . | . . . . . . . . . . . . . . Self-Inflicted Damage 28 | . . . . . . . . 28 . . . . . Shots 1 | . . . . . . . . 1 . . . . . Rammed . | . . . . . . . . . . . . . . Targets Rammed . | . . . . . . . . . . . . . . Kicked . | . . . . . . . . . . . . . . Crushed . | . . . . . . . . . . . . . . Highest Temperature 39 | . 20 . 8 . 39 . . 7 . . . . . Average Temperature 16 | . 18 . 6 . 17 . . 3 . . . . . Received Heat Transfer 633 | . 45 24 . . 153 . 18 27 . . 9 42 315 Siege Activations . | . . . . . . . . . . . . . . Martial Activations . | . . . . . . . . . . . . . . Shielding Activations . | . . . . . . . . . . . . . . Robots Disrupted . | . . . . . . . . . . . . . . Combat Hostiles . | . . . . . . . . . . . . . . Robots Corrupted . | . . . . . . . . . . . . . . Combat Hostiles . | . . . . . . . . . . . . . . Parts Fried . | . . . . . . . . . . . . . . Impact Corruptions . | . . . . . . . . . . . . . . Robots Melted . | . . . . . . . . . . . . . . Combat Hostiles . | . . . . . . . . . . . . . . Parts Melted . | . . . . . . . . . . . . . . Heat Transferred 50 | . . . . . . . . 50 . . . . . Parts Sabotaged . | . . . . . . . . . . . . . . Parts Stolen 2 | . . . . . . . . 2 . . . . . Parts Stripped . | . . . . . . . . . . . . . . Power Chain Reactions 1 | . . . . . . . . 1 . . . . . Alert | -11 -10 -10 -10 -9 -8 -7 -6 -6 -6 -5 -5 -4 -3 ------- Run | Yrd Mat Min Exi Min Mat Fac Fac Low Low Fac DSF Fac Res Maximum Alert Level 1 | . . . . . . . . . . . . . 1 Low Security (%) 99 | 100 100 100 . 100 100 100 100 . . 100 100 100 94 Level 1 . | . . . . . . . . . . . . . 5 Level 2 . | . . . . . . . . . . . . . . Level 3 . | . . . . . . . . . . . . . . Level 4 . | . . . . . . . . . . . . . . Level 5 . | . . . . . . . . . . . . . . High Security . | . . . . . . . . . . . . . . Max Security . | . . . . . . . . . . . . . . Peak Influence 200 | . 66 71 . 70 188 69 20 . . . 15 15 200 Initial 69 | . . 21 . . 23 69 1 . . . . . 7 Average 24 | . 43 32 . 48 132 19 . . . . . . 42 Influence Increases 924 | . 96 60 . 90 240 14 25 70 . . 15 44 270 Destroy 0b10 Robot/C 220 | . 80 . . 80 . . . 60 . . . . . Destroy 0b10 Robot/NC 5 | . 5 . . . . . . . . . . . . Destroy Leader 30 | . 10 . . 10 . . . 10 . . . . . Successful Hack 38 | . . . . . . 14 10 . . . . 14 . Destroy Structure 1 | . 1 . . . . . . . . . . . . Partial Spotted 75 | . . . . . 15 . 15 . . . . 15 30 Lose Combat Pursuer 555 | . . 60 . . 225 . . . . . 15 15 240 Influence Decreases 724 | . 40 55 61 30 147 163 19 80 . . 15 29 85 Entered New Map 232 | . . 35 61 . 37 84 3 4 . . . . 8 Time Decay 353 | . 40 20 . 20 90 79 16 36 . . . 15 37 Lost Part 139 | . . . . 10 20 . . 40 . . 15 14 40 Squads Dispatched 11 | . . . . . 2 1 2 . . . 1 2 3 Investigation 3 | . . . . . . . 1 . . . . 1 1 Extermination 2 | . . . . . . 1 . . . . . 1 . Reinforcement 4 | . . . . . 2 . 1 . . . 1 . . Assault 2 | . . . . . . . . . . . . . 2 Garrison . | . . . . . . . . . . . . . . Intercept . | . . . . . . . . . . . . . . Searches Triggered . | . . . . . . . . . . . . . . Construction Impeded . | . . . . . . . . . . . . . . Haulers Reinforced . | . . . . . . . . . . . . . . Active Scanning Responses . | . . . . . . . . . . . . . . Cargo Convoy Interrupts . | . . . . . . . . . . . . . . Stealth | -11 -10 -10 -10 -9 -8 -7 -6 -6 -6 -5 -5 -4 -3 --------- Run | Yrd Mat Min Exi Min Mat Fac Fac Low Low Fac DSF Fac Res Distress Signals 8 | . . . . . 4 . 1 . . . . 1 2 Communications Jammed . | . . . . . . . . . . . . . . Distress Signals . | . . . . . . . . . . . . . . Times Spotted 114 | . 6 4 . 4 26 2 11 18 1 . 6 8 28 Peak Tracking Total 16 | . 3 4 . 4 15 3 10 5 1 . 6 6 16 Tactical Retreats 18 | . . 1 . . 4 . 3 4 . . 1 1 4 ECM-based Alert Blocks 22 | . . . . . . . 11 11 . . . . . Traps | -11 -10 -10 -10 -9 -8 -7 -6 -6 -6 -5 -5 -4 -3 ------- Run | Yrd Mat Min Exi Min Mat Fac Fac Low Low Fac DSF Fac Res Traps Triggered 2 | . . . . . . . . . . . . 1 1 Indirectly . | . . . . . . . . . . . . . . Trap Hack Attempts . | . . . . . . . . . . . . . . Triggered . | . . . . . . . . . . . . . . Disarmed . | . . . . . . . . . . . . . . Reprogrammed . | . . . . . . . . . . . . . . Reused . | . . . . . . . . . . . . . . Traps Extracted . | . . . . . . . . . . . . . . Installed . | . . . . . . . . . . . . . . Triggered . | . . . . . . . . . . . . . . Machines | -11 -10 -10 -10 -9 -8 -7 -6 -6 -6 -5 -5 -4 -3 ---------- Run | Yrd Mat Min Exi Min Mat Fac Fac Low Low Fac DSF Fac Res Machines Disabled 1 | . . . 1 . . . . . . . . . . Max in Single Turn 1 | . . . 1 . . . . . . . . . . Garrison Access 1 | . . . . . . . . . . . . . 1 Machines Repaired . | . . . . . . . . . . . . . . Machines Dismantled . | . . . . . . . . . . . . . . Machines Sabotaged . | . . . . . . . . . . . . . . Overloaded Fab Kills . | . . . . . . . . . . . . . . Hacking | -11 -10 -10 -10 -9 -8 -7 -6 -6 -6 -5 -5 -4 -3 --------- Run | Yrd Mat Min Exi Min Mat Fac Fac Low Low Fac DSF Fac Res Machines Accessed 20 | . . . 2 . 2 6 4 1 . 2 . 2 1 Terminals 12 | . . . . . 1 4 4 1 . 1 . 1 . Fabricators 2 | . . . . . . . . . . 1 . . 1 Repair Stations . | . . . . . . . . . . . . . . Recycling Units 1 | . . . . . . 1 . . . . . . . Scanalyzers . | . . . . . . . . . . . . . . Garrison Access 3 | . . . . . 1 1 . . . . . 1 . Total Hacks 57 | . . . 19 . 7 13 8 1 . 2 . 6 1 Successful 34 | . . . 19 . 1 5 4 1 . 2 . 2 . Failed 23 | . . . . . 6 8 4 . . . . 4 1 Catastrophic 7 | . . . . . 1 3 1 . . . . 1 1 Database Lockouts . | . . . . . . . . . . . . . . Manual . | . . . . . . . . . . . . . . Terminals 26 | . . . . . 5 7 8 1 . 1 . 4 . Fabricators 2 | . . . . . . . . . . 1 . . 1 Repair Stations . | . . . . . . . . . . . . . . Recycling Units 4 | . . . . . . 4 . . . . . . . Scanalyzers . | . . . . . . . . . . . . . . Garrison Access 6 | . . . . . 2 2 . . . . . 2 . Terminal Hacks 28 | . . . 19 . 1 1 4 1 . 1 . 1 . Record 20 | . . . 19 . . . . 1 . . . . . Open DSF 2 | . . . . . . . 1 . . 1 . . . Dispatch Records 1 | . . . . . . . 1 . . . . . . Transport Status 1 | . . . . . . . 1 . . . . . . Reinforcement Status 2 | . . . . . 1 . 1 . . . . . . Hauler Manifests 1 | . . . . . . 1 . . . . . . . Zone Layout 1 | . . . . . . . . . . . . 1 . Fabricator Hacks 1 | . . . . . . . . . . 1 . . . Network Status 1 | . . . . . . . . . . 1 . . . Repair Station Hacks . | . . . . . . . . . . . . . . Recycling Unit Hacks 4 | . . . . . . 4 . . . . . . . Recycle Component 1 | . . . . . . 1 . . . . . . . Process 1 | . . . . . . 1 . . . . . . . Report Inventory 1 | . . . . . . 1 . . . . . . . Retrieve Matter 1 | . . . . . . 1 . . . . . . . Scanalyzer . | . . . . . . . . . . . . . . Garrison Access Hacks 1 | . . . . . . . . . . . . 1 . Unlock Access 1 | . . . . . . . . . . . . 1 . Unauthorized Hacks . | . . . . . . . . . . . . . . Terminals . | . . . . . . . . . . . . . . Fabricators . | . . . . . . . . . . . . . . Repair Stations . | . . . . . . . . . . . . . . Recycling Units . | . . . . . . . . . . . . . . Scanalyzers . | . . . . . . . . . . . . . . Garrison Access . | . . . . . . . . . . . . . . Data Cores Recovered . | . . . . . . . . . . . . . . Used . | . . . . . . . . . . . . . . Hacking Detections 12 | . . . . . 2 5 3 . . . . 1 1 Full Trace Events 1 | . . . . . . . 1 . . . . . . Feedback Events . | . . . . . . . . . . . . . . Feedback Blocked . | . . . . . . . . . . . . . . Robot Schematics Acquired . | . . . . . . . . . . . . . . Robots Built . | . . . . . . . . . . . . . . Authchips . | . . . . . . . . . . . . . . Time . | . . . . . . . . . . . . . . Total Robot Build Rating . | . . . . . . . . . . . . . . Part Schematics Acquired . | . . . . . . . . . . . . . . Parts Built . | . . . . . . . . . . . . . . Authchips . | . . . . . . . . . . . . . . Time . | . . . . . . . . . . . . . . Total Part Build Rating . | . . . . . . . . . . . . . . Part Studies Acquired . | . . . . . . . . . . . . . . Parts Repaired . | . . . . . . . . . . . . . . Time . | . . . . . . . . . . . . . . Parts Recycled 1 | . . . . . . 1 . . . . . . . Recycled Matter 7 | . . . . . . 7 . . . . . . . Retrieved Matter 7 | . . . . . . 7 . . . . . . . Retrieved Components . | . . . . . . . . . . . . . . Parts Scanalyzed . | . . . . . . . . . . . . . . Part Schematics Acquired . | . . . . . . . . . . . . . . Parts Damaged . | . . . . . . . . . . . . . . Bothacking | -11 -10 -10 -10 -9 -8 -7 -6 -6 -6 -5 -5 -4 -3 ------------ Run | Yrd Mat Min Exi Min Mat Fac Fac Low Low Fac DSF Fac Res Used RIF Installer . | . . . . . . . . . . . . . . Robots Hacked 1 | . . . . . . 1 . . . . . . . Non-combat 1 | . . . . . . 1 . . . . . . . Combat . | . . . . . . . . . . . . . . Robot Hacks Applied 1 | . . . . . . 1 . . . . . . . parse_system 1 | . . . . . . 1 . . . . . . . Relay Couplers Released 1 | . . . . . . . . . . . . . 1 Machine Destruction 1 | . . . . . . . . . . . . . 1 Fabnet Peak Effective % . | . . . . . . . . . . . . . . Robots Rewired . | . . . . . . . . . . . . . . Allies Hacked . | . . . . . . . . . . . . . . Hacks Repelled . | . . . . . . . . . . . . . . Allies | -11 -10 -10 -10 -9 -8 -7 -6 -6 -6 -5 -5 -4 -3 -------- Run | Yrd Mat Min Exi Min Mat Fac Fac Low Low Fac DSF Fac Res Total Allies . | . . . . . . . . . . . . . . Largest Group . | . . . . . . . . . . . . . . Highest-Rated Group . | . . . . . . . . . . . . . . Highest-Rated Ally . | . . . . . . . . . . . . . . Total Orders . | . . . . . . . . . . . . . . Ally Attacks . | . . . . . . . . . . . . . . Total Damage . | . . . . . . . . . . . . . . Kills . | . . . . . . . . . . . . . . Allies Corrupted . | . . . . . . . . . . . . . . Allies Melted . | . . . . . . . . . . . . . . Intel | -11 -10 -10 -10 -9 -8 -7 -6 -6 -6 -5 -5 -4 -3 ------- Run | Yrd Mat Min Exi Min Mat Fac Fac Low Low Fac DSF Fac Res Active Infowar (turns) 782 | . . . . . . 9 245 276 5 13 18 216 . Traps 382 | . . . . . . . 88 276 5 13 . . . Triangulation 18 | . . . . . . . . . . . 18 . . Cloaking 166 | . . . . . . . 3 21 . . . 142 . Jamming 216 | . . . . . . . . . . . . 216 . ECM 554 | . . . . . . 9 245 276 5 13 6 . . Robot Analysis Total . | . . . . . . . . . . . . . . Derelict Logs Recovered 2 | . . 1 . . . . . 1 . . . . . Drone Launches . | . . . . . . . . . . . . . . Drone Recoveries . | . . . . . . . . . . . . . . Exploration | -11 -10 -10 -10 -9 -8 -7 -6 -6 -6 -5 -5 -4 -3 ------------- Run | Yrd Mat Min Exi Min Mat Fac Fac Low Low Fac DSF Fac Res Turns Passed 2460 | 52 101 41 303 49 184 275 245 276 5 56 80 618 175 Spaces Moved 4333 | 38 62 111 805 50 368 715 342 545 15 148 110 747 277 Core 114 | 1 . . . . . . . . . . 27 . 86 Treads . | . . . . . . . . . . . . . . Legs . | . . . . . . . . . . . . . . Wheels 81 | 37 44 . . . . . . . . . . . . Hover 125 | . . . . . . . . . . . . . 125 Flight 4013 | . 18 111 805 50 368 715 342 545 15 148 83 747 66 Fastest Speed 24 | 50 37 37 37 37 31 26 25 25 34 34 24 40 40 Average Speed 36 | 79 67 37 37 37 32 26 25 38 34 34 33 40 51 Slowest Speed 110 | 80 80 37 37 37 34 37 26 110 34 34 50 40 60 Overloaded Moves . | . . . . . . . . . . . . . . Propulsion Burnouts . | . . . . . . . . . . . . . . Robots Hopped 20 | . . 1 . . 13 2 3 . . . . 1 . Potential Cave-ins . | . . . . . . . . . . . . . . Cave-ins Triggered . | . . . . . . . . . . . . . . Exploration Rate (%) 30 | 3 17 33 92 10 49 26 13 70 4 5 83 16 10 Regions Visited 13 Branch Regions 5 Pre-discovered Areas 1 | . . 1 . . . . . . . . . . . Known Exits Taken 1 | . . . . . . . . . . 1 . . . Unknown Exits Taken 11 | 1 1 1 1 1 1 1 1 1 1 . . 1 . Scrap Searched 4 | . . 1 . . . . . 3 . . . . . Spaces Dug . | . . . . . . . . . . . . . . Terrain Destroyed 6 | . . . . . . . . 6 . . . . . Melee . | . . . . . . . . . . . . . . Projectile 1 | . . . . . . . . 1 . . . . . AOE 5 | . . . . . . . . 5 . . . . . Terrain Rammed . | . . . . . . . . . . . . . . Walls Destroyed . | . . . . . . . . . . . . . . Machines Disabled . | . . . . . . . . . . . . . . Actions | -11 -10 -10 -10 -9 -8 -7 -6 -6 -6 -5 -5 -4 -3 --------- Run | Yrd Mat Min Exi Min Mat Fac Fac Low Low Fac DSF Fac Res Total 5133 | 59 90 109 807 72 419 798 499 595 14 153 149 1062 307 Wait 599 | 8 . . 2 . 41 46 144 20 . 5 29 280 24 Move 4282 | 37 61 108 804 49 343 710 335 544 14 147 109 744 277 Hop 18 | . . 1 . . 11 2 3 . . . . 1 . Pick Up 56 | 10 3 . . 5 7 12 4 3 . 1 1 10 . Fast Attach 19 | . . . . . 1 3 . . . . 8 2 5 Attach 44 | 4 2 . . 2 6 5 5 7 . . 1 12 . Detach 12 | . . . . . . . 2 5 . . . 5 . Swap 31 | . 7 . . 3 5 8 2 6 . . . . . Drop 37 | . 3 . . 7 5 11 4 2 . . 1 3 1 Fire 29 | . 14 . 1 6 . . . 8 . . . . . Melee 1 | . . . . . . 1 . . . . . . . Ram . | . . . . . . . . . . . . . . Kick . | . . . . . . . . . . . . . . Crush . | . . . . . . . . . . . . . . Escape Stasis . | . . . . . . . . . . . . . . Rewire . | . . . . . . . . . . . . . . Trap . | . . . . . . . . . . . . . . Miscellaneous 5 | . . . . . . . . . . . . 5 . Route ------- -11/Scrapyard -10/Materials -10/Mines -10/Exiles (discovered 2 exits: [*Min x2]) -9/Mines -8/Materials -7/Factory -6/Factory -6/Lower Caves -6/Lower Caves -5/Factory (discovered 2 exits: Ext / DSF) -5/DSF -4/Factory (discovered 2 exits: *Res / Gar) -3/Research History --------- Turn | Location | Event 15 | -11/Scrapyard | Discovered new exit (range 16) 53 | -11/Scrapyard | Entered Materials 118 | -10/Materials | Discovered new exit (range 16) 154 | -10/Materials | Entered Mines 162 | -10/Mines | Learned location of Storage (-7) 166 | -10/Mines | Assembled infested the area 194 | -10/Mines | Deemed a non-threat by the Exiles lab entrance 194 | -10/Mines | Discovered new exit (range 5) 195 | -10/Mines | Entered Exiles 205 | -10/Exiles | Discovered new exit (range 15) 209 | -10/Exiles | Met 8R-AWN 216 | -10/Exiles | Met EX-HEX 232 | -10/Exiles | Met EX-BIN 242 | -10/Exiles | Aligned with FarCom system 242 | -10/Exiles | Given EX-Vault access code 273 | -10/Exiles | Met EX-DEC 286 | -10/Exiles | Visited The Gauntlet 301 | -10/Exiles | Build established: Mutant 344 | -10/Exiles | Discovered new exit (range 14) 498 | -10/Exiles | Entered Mines 543 | -9/Mines | Discovered new exit (range 10) 547 | -9/Mines | Entered Materials 547 | -8/Materials | Evolved 4 slots: Propulsion x2, Utility x2 726 | -8/Materials | Discovered new exit (range 16) 731 | -8/Materials | Entered Factory 731 | -7/Factory | Evolved 2 slots: Power x1, Propulsion x1 1003 | -7/Factory | Discovered new exit (range 9) 1006 | -7/Factory | Entered another Factory area 1006 | -6/Factory | Evolved 2 slots: Power x1, Utility x1 1088 | -6/Factory | Build established: Sprinter 1243 | -6/Factory | Discovered new exit (range 8) 1251 | -6/Factory | Entered Lower Caves 1252 | -6/Lower Caves | Encountered a Warlord checkpoint 1267 | -6/Lower Caves | Found DCF Scrap (14 items) 1386 | -6/Lower Caves | Lost 3 parts (3n) 1526 | -6/Lower Caves | Discovered new exit (range 3) 1527 | -6/Lower Caves | Entered another Lower Caves area 1530 | -6/Lower Caves | Discovered new exit (range 7) 1532 | -6/Lower Caves | Entered Factory 1532 | -5/Factory | Evolved 2 slots: Propulsion x1, Utility x1 1533 | -5/Factory | Identified exit to Extension 1588 | -5/Factory | Identified exit to DSF 1588 | -5/Factory | Entered DSF 1604 | -5/DSF | Additional patrols routed to DSF 1658 | -5/DSF | Discovered new exit (range 14) 1666 | -5/DSF | Core integrity fell below 50% 1668 | -5/DSF | Entered Factory 1668 | -4/Factory | Evolved 2 slots: Weapon x2 1685 | -4/Factory | Lost 13 parts (1p7n4u1w) 1924 | -4/Factory | Build established: Infiltrator-Mutant 2148 | -4/Factory | Identified exit to Garrison 2280 | -4/Factory | Discovered new exit (range 15) 2286 | -4/Factory | Entered Research 2286 | -3/Research | Evolved 2 slots: Propulsion x1, Utility x1 2371 | -3/Research | Spotted B-86 Titan 2410 | -3/Research | Spotted B-86 Titan 2438 | -3/Research | Core integrity fell below 50% 2450 | -3/Research | Lost 9 parts (1p5n2u1w) 2452 | -3/Research | Core integrity fell below 20% 2461 | -3/Research | Destroyed by S-43 Plague with Heavy Machine Gun Last Messages --------------- 02394_ Critical hit (Burn: +37). 02396_ Acquired 13 matter. 02397_ Door malfunctions. 02401_ Triggered Alarm Trap. 02401_ An alarm sounds. 02401_ ALERT: Alarm triggered, dispatching investigation squad. 02405_ System corrupted: Matter fused (-5). 02405_ W-44 Eye sends out distress signal. 02415_ Gravmag Array destroyed. 02419_ Com. Battery destroyed. 02421_ G-67 Veteran misfires. 02433_ Penetrated by Slug. 02440_ Slug penetrates Wall. 02443_ Acquired 6 matter. 02446_ Penetrated by Slug. 02450_ Slug penetrates Wall. 02456_ Acquired 125 matter. 02460_ B-86 Titan activates siege mode. 02460_ Slug penetrates Wall. Map ----- +----------------------------------------------------+ | ?????????????????????????# """ """ # #?????? | | ?????????????????????????# """ """ # #?????? | | ?????????????????????????# """ """ # #?????? | | ?????????????????????????# / #?????? | | ?????????????????????????# # #?????? | | ?????????????????????????# """ """ # #?????? | | ?????????????????????????# """ """ # #?????? | | ?????????????????????????# """ """ # #?????? | | ?????????????????????????# # #?????? | | ?????????????????????????# # #?????? | | ?????????????????????????##"########### #?????? | | ??????????????????????????# #?????????# #?????? | | ??????????????????????????# #?????????# #?????? | | ??????????????????????????#u###???????# #?????? | | ??????????????????????????# # #???????# #?????? | | ????????????????????????###%########### ####### | | ????????????????????????# | | ????????????????????????# g | | ???????????????########## | | ???????????????# ** # g =g gg | | ???????????????# * # g ############# | | ???????????????# # g /g/ #???????????# | | ???????????????# #g% /// #?########### | | ??????????????## gl g// ##?# # | | ??????????????#" #g #??# =! # | | ??????????????## #@Y #??# =! # | | ???????????????# s ; #??# + | | ???????????????# ps s; ;BB## #??# # | | ???????????????###/###### ;BB#? #??# = = # | | ???????????????# #?## ;;;##+#### # = | | ???????????????# ### ;#;# # [ ! # | | ???????????????# " !% + ########### | | ???????????????# ### #### #???????#"" | | ???????????????# ####+###?# #???????#"" | | ???????????????###+### #?# #???????#"" | | ?????????????????????# #?# #???????#T | | ?????????????????????# #?# #???????#"" | | ?????????????????????# #?# #???????#"" | | ?????????????????????# #?# #???????#"" | | ?????????????????????# #?######???????### | | ?????????????????????########????????????????# | | ???????????????????????????????????########### | | ???????????????????????????????????# # | | ???????????????????????????????????# # | | ???????????????????????????????????# # | | ???????????????????????????????????# # | | ???????????????????????????????????# # | | ???????????????????????????????????# + | | ???????????????????????????????????# # | | ???????????????????????????????????# [# | +----------------------------------------------------+ Best States ------------- Heat Dissipation 54 Coolant Potential 100 Energy Generation 35 Energy Capacity 330 Matter Stores 300 Matter Capacity 300 Sight Range 16 Terrain Scan Density 10 ECM Strength 1 Jamming Range 12 Cloak Strength 2 Additional Mass Support 9 Base Temperature (-) 200 Armor Coverage 150 Evasion (%) 65 Targeting Accuracy 5 Defensive Hacking 14 Item Schematics ----------------- None Robot Schematics ------------------ None Fabricated ------------ Nothing Repaired ---------- Nothing Studied --------- None Alien Tech Used ----------------- None Achievements -------------- Dangerous Findings Sixth Sense Streaker Challenges ------------ None Game ------ Seed ControlVisualShearcannon Manual? 0 Play Time 01:07:15 Cumulative 31.2 hours Start 2026.06.29 @ 17:09:49 End 2026.06.29 @ 18:15:48 Sessions 1 Manual Loads 0 Difficulty Rogue Special Mode None Game No. 49 Rogue 21 Adventurer 28 Explorer 0 Win Type - Total 0 Types 0/0/0/0/0/0/0/0/0/0 Lore% 16 Gallery% 23 Achievement% 18 Wizard Run 0 Options --------- Layout 1 ASCII 0 Keyboard 0 Movement Mouse Keybinds 0 Fullscreen 1 Font 24/Smallcaps Map View 50x35 Zoom Use 0% Tactical HUD 1 Map Filters NONE Filters NONE Steam 1 RUN: 382698e7-eb3a-4e8a-9724-d9084f7fca59